lending/lending_fUSD_20240401
["ID","MTS","AMOUNT","RATE_DAILY","PERIOD"]
[321243863,1712013051437,-500.0,0.00058626,120]
[321243864,1712013051446,-636.53,0.00058626,120]
[321243865,1712013051456,-562.67,0.00058626,120]
[321243866,1712013051465,-500.0,0.00058626,120]
[321243867,1712013051475,-1544.32,0.00058626,120]
[321243868,1712013051485,-589.24,0.00058626,120]
[321243869,1712013051494,-794.89,0.00058626,120]
[321243870,1712013051504,-500.0,0.00058626,120]
[321243871,1712013051513,-2261.45,0.00058626,120]
[321243872,1712013051522,-648.31,0.00058626,120]
[321243873,1712013051532,-245.57,0.00058626,120]
[321243874,1712013051541,-529.61,0.00058626,120]
[321243875,1712013051551,-500.0,0.00058626,21]
[321243876,1712013051561,-500.0,0.00058627,120]
[321243877,1712013051570,-181.82016839,0.00058627,120]
[321243878,1712013051579,-1795.34,0.00058627,120]
[321243879,1712013051589,-255.05,0.00058627,120]
[321243880,1712013051598,-730.54,0.00058627,120]
[321243881,1712013051607,-676.46,0.00058627,120]
[321243882,1712013051617,-500.0,0.00058627,120]
[321243883,1712013051628,-414.39123526,0.00058627,120]
[321243884,1712013051638,-1358.02,0.00058627,120]
[321243885,1712013051649,-523.05,0.00058627,120]
[321243886,1712013051659,-519.91,0.00058627,120]
[321243887,1712013051669,-502.87,0.00058627,7]
[321243888,1712013051678,-555.34,0.00058627,120]
[321243889,1712013051688,-555.18,0.00058627,120]
[321243890,1712013051698,-520.37,0.00058627,120]
[321243891,1712013051708,-434.15,0.00058628,2]
[321243892,1712013051717,-500.0,0.0005863,3]
[321243893,1712013051728,-1112.66,0.0005863,120]
[321243894,1712013051738,-500.0,0.0005863,120]
[321243895,1712013051748,-513.43,0.0005863,120]
[321243896,1712013051758,-500.0,0.0005863,120]
[321243897,1712013051768,-514.34,0.0005863,120]
[321243898,1712013051778,-4015.03,0.0005863,120]
[321243899,1712013051788,-2452.86,0.00058714,2]
[321243900,1712013051797,-386.02956369,0.00058716,14]
[321243901,1712013051807,-167.06213892,0.000588,2]
[321243902,1712013051823,-396.9,0.00058804,120]
[321243903,1712013051833,-500.0,0.00058861,2]
[321243904,1712013051843,-410.0528,0.00058861,2]
[321243905,1712013051853,-1000.0,0.00058861,2]
[321243906,1712013051866,-1000.0,0.00058861,2]
[321243907,1712013051876,-1000.0,0.00058861,2]
[321243908,1712013051888,-1000.0,0.00058861,2]
[321243909,1712013051900,-1000.0,0.00058861,2]
[321243910,1712013051914,-1000.0,0.00058861,2]
[321243911,1712013051924,-1000.0,0.00058861,2]
[321243912,1712013051934,-1000.0,0.00058861,2]
[321243913,1712013051944,-1000.0,0.00058861,2]
[321243914,1712013051956,-1000.0,0.00058861,2]
[321243915,1712013051966,-1000.0,0.00058861,2]
[321243916,1712013051977,-1000.0,0.00058861,2]
[321243917,1712013051988,-1000.0,0.00058861,2]
[321243918,1712013051997,-1000.0,0.00058861,2]
[321243919,1712013052007,-1000.0,0.00058861,2]
[321243920,1712013052018,-1000.0,0.00058861,2]
[321243921,1712013052027,-1000.0,0.00058861,2]
[321243922,1712013052037,-1000.0,0.00058861,2]
[321243923,1712013052048,-1000.0,0.00058861,2]
[321243924,1712013052059,-1000.0,0.00058861,2]
[321243925,1712013052069,-1000.0,0.00058861,2]
[321243926,1712013052078,-1000.0,0.00058861,2]
[321243927,1712013052088,-1071.8497,0.00058861,2]
[321243928,1712013052098,-500.0,0.00058861,2]
[321243929,1712013052107,-500.0,0.00058861,2]
[321243930,1712013052118,-500.0,0.00058861,2]
[321243931,1712013052128,-500.0,0.00058861,2]
[321243932,1712013052138,-500.0,0.00058861,2]
[321243933,1712013052148,-500.0,0.00058861,2]
[321243934,1712013052157,-500.0,0.00058861,2]
[321243935,1712013052167,-500.0,0.00058861,2]
[321243936,1712013052176,-500.0,0.00058861,2]
[321243937,1712013052186,-565.1923,0.00058861,2]
[321243938,1712013052197,-929.0,0.0005887,15]
[321243939,1712013052206,-150.0,0.00058877,14]
[321243940,1712013052216,-38127.57168094,0.0005888,36]
[321243941,1712013052225,-479163.17658442,0.0005888,7]
[321243942,1712013052235,-151.0,0.0005888,7]
[321243943,1712013052245,-929.0,0.0005888,15]
[321243944,1712013052254,-344.6,0.0005888,120]
[321243945,1712013052264,-246.131254,0.0005888,120]
[321243946,1712013052272,-344.6,0.0005888,120]
[321243947,1712013052282,-249.84984,0.0005888,120]
[321243948,1712013052291,-151.0,0.0005888,120]
[321243949,1712013052301,-302.0,0.00058883,4]
[321243950,1712013052311,-2000.0,0.00058887,120]
[321243951,1712013052320,-1999.999997,0.00058888,120]
[321243952,1712013052330,-929.0,0.0005889,15]
[321243953,1712013052340,-9599.999999,0.000589,120]
[321243954,1712013052349,-237635.3640304,0.000589,120]
[321243955,1712013052358,-151.0,0.000589,7]
[321243956,1712013052368,-344.6,0.000589,120]
[321243957,1712013052377,-344.6,0.000589,120]
[321243958,1712013052387,-500.0,0.000589,120]
[321243959,1712013052397,-2680.62,0.000589,120]
[321243960,1712013052406,-500.0,0.000589,120]
[321243961,1712013052417,-368.95,0.000589,120]
[321243962,1712013052426,-500.0,0.000589,120]
[321243963,1712013052437,-636.53,0.000589,120]
[321243964,1712013052447,-562.67,0.000589,120]
[321243965,1712013052456,-500.0,0.000589,120]
[321243966,1712013052467,-1544.32,0.000589,120]
[321243967,1712013052476,-589.24,0.000589,120]
[321243968,1712013052486,-794.89,0.000589,120]
[321243969,1712013052495,-275.33,0.000589,120]
[321243970,1712013052504,-2261.45,0.000589,120]
[321243971,1712013052514,-529.61,0.000589,120]
[321243972,1712013052523,-500.0,0.000589,21]
[321243973,1712013052533,-170.0198104,0.000589,2]
[321243974,1712013052543,-151.0,0.000589,120]
[321243975,1712013052553,-1105.81067774,0.000589,2]
[321243976,1712013052562,-108.16197766,0.00058901,120]
[321243977,1712013052708,-391.83802234,0.00058901,120]
[321243978,1712013052718,-306.5918413,0.00058901,120]
[321243979,1712013052798,-500.0,0.00055338,120]
[321243980,1712013052809,-500.0,0.00055612,120]
[321243981,1712013052821,-500.0,0.00055886,120]
[321243982,1712013052831,-500.0,0.0005616,120]
[321243983,1712013052840,-500.0,0.00056434,120]
[321243984,1712013052850,-12.62365626,0.00056438,120]
[321243985,1712013052962,-487.37634374,0.00056438,120]
[321243986,1712013052973,-214.40666056,0.00056712,120]
[321243987,1712013053097,-500.0,0.00054594,2]
[321243988,1712013053106,-500.0,0.00054794,120]
[321243989,1712013053116,-450.29366017,0.00055068,120]
[321243990,1712013053129,-49.70633983,0.00055068,120]
[321243991,1712013053138,-500.0,0.00055342,120]
[321243992,1712013053147,-185.15,0.0005588,10]
[321243993,1712013053157,-500.0,0.00056708,120]
[321243994,1712013053167,-285.59333944,0.00056712,120]
[321243995,1712013053176,-500.0,0.00056982,120]
[321243996,1712013053186,-500.0,0.00056986,120]
[321243997,1712013053196,-375.25,0.00057256,120]
[321243998,1712013053207,-341.55,0.0005726,120]
[321243999,1712013053217,-1209.73,0.00058627,120]
[321244000,1712013053227,-1488.7481587,0.00058901,120]
[321244001,1712013053237,-730.54,0.00058901,120]
[321244002,1712013053247,-676.46,0.00058901,120]
[321244003,1712013053257,-360.63,0.00058901,120]
[321244004,1712013053268,-1358.02,0.00058901,120]
[321244005,1712013053277,-523.05,0.00058901,120]
[321244006,1712013053287,-519.91,0.00058901,120]
[321244007,1712013053297,-502.87,0.00058901,7]
[321244008,1712013053307,-555.18,0.00058901,120]
[321244009,1712013053316,-520.37,0.00058901,120]
[321244010,1712013053326,-1209.73,0.00058901,120]
[321244011,1712013053335,-500.0,0.00058904,3]
[321244012,1712013053345,-1112.66,0.00058904,120]
[321244013,1712013053354,-500.0,0.00058904,120]
[321244014,1712013053364,-513.43,0.00058904,120]
[321244015,1712013053374,-500.0,0.00058904,120]
[321244016,1712013053384,-514.34,0.00058904,120]
[321244017,1712013053393,-4015.03,0.00058904,120]
[321244018,1712013053402,-7464.98862505,0.00058922,7]
[321244026,1712013241417,404.51729188,0.0003,4]
[321244197,1712014013231,153.415899,0.0003,120]
[321244198,1712014035293,-915.34009879,0.00032899,4]
[321244199,1712014035313,-350.0,0.00033,3]
[321244200,1712014035333,-56.3047963,0.00035,3]
[321244201,1712014054106,-343.6952037,0.00035,3]
[321244202,1712014054128,-531.28161123,0.00036697,2]
[321244203,1712014152084,-1719.74618877,0.00036697,2]
[321244204,1712014152107,-158.28514711,0.00036698,2]
[321244205,1712014152131,-1746.47165291,0.00036798,4]
[321244206,1712014152152,-450.0,0.00037,3]
[321244207,1712014152175,-156.77,0.00037808,2]
[321244208,1712014152197,-158.28514711,0.00039473,2]
[321244209,1712014152218,-199.05180183,0.00039473,2]
[321244210,1712014168121,-2666.685895,0.000418,41]
[321244211,1712014168149,-158.28514711,0.00042249,2]
[321244212,1712014168174,-1378.04,0.000423,2]
[321244213,1712014168199,-999.99,0.000423,2]
[321244214,1712014168222,-1500.0,0.000423,41]
[321244215,1712014168244,-1500.0,0.000428,41]
[321244216,1712014168267,-901.23353207,0.00043299,4]
[321244217,1712014168287,-1500.0,0.000433,41]
[321244218,1712014168311,-158.28514711,0.00045024,2]
[321244219,1712014168334,-366.62,0.00047404,2]
[321244220,1712014168355,-499.99,0.00047404,2]
[321244221,1712014168376,-158.28514711,0.00047799,2]
[321244222,1712014169838,4899.35831394,0.000417,2]
[321244230,1712014221328,16711.55547495,0.00039472,4]
[321244242,1712014232090,-573.7776657,0.00049,5]
[321244244,1712014232198,-328.6223343,0.00049,5]
[321244245,1712014232210,-348.8637711,0.00049184,120]
[321244246,1712014232255,-155.8362289,0.00049184,120]
[321244247,1712014232265,-191.19,0.00049226,2]
[321244248,1712014232275,-422.92717561,0.00049421,4]
[321244249,1712014232285,-177.57,0.00049507,14]
[321244250,1712014232295,-366.62,0.00049668,2]
[321244251,1712014232304,-1369.54177389,0.00049718,2]
[321244252,1712014232421,-878.11822611,0.00049718,2]
[321244253,1712014232431,-181.17969548,0.00049776,4]
[321244254,1712014232449,-720.05383659,0.00049776,4]
[321244255,1712014232458,-340.28963283,0.00049777,4]
[321244256,1712014232467,-1382.19724127,0.00049778,2]
[321244305,1712014238457,-22517.80275873,0.00049778,2]
[321244307,1712014238467,-150.55,0.00049889,120]
[321244309,1712014238476,-160.54,0.00050139,120]
[321244312,1712014238487,-169.66,0.00050411,2]
[321244314,1712014238497,-1000.0,0.00050594,120]
[321244316,1712014238506,-170.34,0.00050659,2]
[321244318,1712014238515,-620.39362308,0.00051862,2]
[321244320,1712014238524,-366.62,0.00051932,2]
[321244322,1712014238533,-152.0,0.00051983,3]
[321244324,1712014238542,-172.51,0.00052243,2]
[321244326,1712014238552,-191.19,0.00052299,2]
[321244328,1712014238561,-2247.66,0.00052458,2]
[321244330,1712014238570,-366.62,0.00054195,2]
[321244331,1712014238579,-409.18,0.00054441,30]
[321244332,1712014238588,-924.23,0.00054441,30]
[321244333,1712014238597,-1180.0,0.00054494,2]
[321244334,1712014238606,-1000.0,0.00054494,2]
[321244335,1712014238615,-2500.0,0.00054494,2]
[321244336,1712014238624,-1036.95193966,0.00054494,26]
[321244337,1712014238633,-4092.24965679,0.00054494,2]
[321244338,1712014238642,-165.44124159,0.00054494,14]
[321244341,1712014238659,-157.040208,0.00054511,99]
[321244343,1712014238673,-157.040208,0.00054531,100]
[321244345,1712014238683,-157.040208,0.00054551,101]
[321244348,1712014238692,-157.040208,0.00054571,102]
[321244350,1712014238704,-831.18,0.00054578,30]
[321244352,1712014238713,-347.34,0.00054578,30]
[321244354,1712014238722,-174.63,0.00054584,2]
[321244356,1712014238732,-154.29,0.00054584,10]
[321244357,1712014238741,-157.040208,0.00054591,103]
[321244359,1712014238751,-4176.85107112,0.00054592,4]
[321244362,1712014238762,-1060.98377059,0.00054592,4]
[321244364,1712014238771,-542.81568869,0.00054592,4]
[321244366,1712014238781,-492.35077603,0.00054592,4]
[321244367,1712014238790,-373.37472424,0.00054592,4]
[321244368,1712014238800,-784.1096249,0.00054593,4]
[321244369,1712014238810,-1000.0,0.00054593,120]
[321244370,1712014238820,-100000.0,0.00054594,2]
[321244371,1712014238830,-1000.0,0.00054594,2]
[321244372,1712014238839,-245000.0,0.00054594,2]
[321244373,1712014238849,-500.0,0.00054594,2]
[321244374,1712014238859,-39869.9327,0.00054594,2]
[321244375,1712014238868,-500.0,0.00054794,120]
[321244376,1712014238878,-239.13098567,0.00054794,2]
[321244377,1712014238888,-500.0,0.00054794,7]
[321244378,1712014238898,-500.0,0.00054794,120]
[321244379,1712014238908,-500.0,0.00054794,3]
[321244380,1712014238918,-500.0,0.00054794,120]
[321244381,1712014238928,-500.0,0.00054794,120]
[321244382,1712014238938,-368.95,0.00054794,120]
[321244383,1712014238948,-500.0,0.00054794,120]
[321244384,1712014238957,-500.0,0.00054794,120]
[321244385,1712014238967,-402.70583213,0.00054794,120]
[321244386,1712014238977,-707.82,0.00054794,120]
[321244387,1712014238987,-500.0,0.00054794,120]
[321244388,1712014238997,-504.06,0.00054794,120]
[321244389,1712014239007,-500.0,0.00054794,7]
[321244390,1712014239016,-500.0,0.00054794,120]
[321244391,1712014239026,-500.0,0.00054794,120]
[321244392,1712014239035,-524.83,0.00054794,120]
[321244393,1712014239045,-526.38,0.00054794,120]
[321244394,1712014239055,-500.0,0.00054794,120]
[321244395,1712014239064,-595.4,0.00054794,120]
[321244396,1712014239075,-500.0,0.00054794,120]
[321244397,1712014239090,-500.0,0.00054794,120]
[321244398,1712014239099,-500.0,0.00054794,120]
[321244399,1712014239110,-500.0,0.00054794,120]
[321244400,1712014239120,-1108.52,0.00054794,120]
[321244401,1712014239133,-500.0,0.00054794,120]
[321244402,1712014239143,-1333.59,0.00054794,120]
[321244403,1712014239153,-500.0,0.00054794,120]
[321244404,1712014239164,-500.0,0.00054794,120]
[321244405,1712014239174,-500.0,0.00054794,120]
[321244406,1712014239183,-594.12,0.00054794,120]
[321244407,1712014239192,-500.0,0.00054794,120]
[321244408,1712014239202,-500.0,0.00054794,120]
[321244409,1712014239212,-500.0,0.00054794,120]
[321244410,1712014239221,-500.0,0.00054794,120]
[321244411,1712014239232,-500.0,0.00054794,120]
[321244412,1712014239242,-500.0,0.00054794,120]
[321244413,1712014239252,-500.0,0.00054794,120]
[321244414,1712014239263,-500.0,0.00054794,120]
[321244415,1712014239272,-500.0,0.00054794,21]
[321244416,1712014239283,-500.0,0.00054794,120]
[321244417,1712014239292,-500.0,0.00054794,120]
[321244418,1712014239302,-1338.35,0.00054794,120]
[321244419,1712014239312,-500.0,0.00054794,120]
[321244420,1712014239321,-500.0,0.00054794,120]
[321244421,1712014239331,-500.0,0.00054794,120]
[321244422,1712014239341,-500.0,0.00054794,120]
[321244423,1712014239350,-500.0,0.00054794,120]
[321244424,1712014239362,-500.0,0.00054794,120]
[321244425,1712014239372,-500.0,0.00054794,120]
[321244426,1712014239382,-500.0,0.00054794,120]
[321244427,1712014239391,-500.0,0.00054794,120]
[321244428,1712014239400,-500.0,0.00054794,120]
[321244429,1712014239409,-509.91,0.00054794,120]
[321244430,1712014239420,-500.0,0.00054794,120]
[321244431,1712014239429,-500.0,0.00054794,120]
[321244432,1712014239439,-500.0,0.00054794,120]
[321244433,1712014239448,-1653.71,0.00054794,120]
[321244434,1712014239458,-500.0,0.00054794,120]
[321244435,1712014239468,-500.0,0.00054794,120]
[321244436,1712014239477,-500.0,0.00054794,120]
[321244437,1712014239487,-500.0,0.00054794,120]
[321244438,1712014239496,-500.0,0.00054794,120]
[321244439,1712014239506,-500.0,0.00054794,120]
[321244440,1712014239515,-500.0,0.00054794,120]
[321244441,1712014239525,-500.0,0.00054794,120]
[321244442,1712014239535,-500.0,0.00054794,120]
[321244443,1712014239544,-500.0,0.00055068,120]
[321244444,1712014239554,-500.0,0.00055068,7]
[321244445,1712014239564,-297.72141002,0.00055068,120]
[321244446,1712014239573,-500.0,0.00055068,3]
[321244447,1712014239583,-500.0,0.00055068,120]
[321244448,1712014239592,-500.0,0.00055068,120]
[321244449,1712014239601,-500.0,0.00055068,120]
[321244450,1712014239610,-500.0,0.00055068,120]
[321244451,1712014239619,-707.82,0.00055068,120]
[321244452,1712014239629,-504.06,0.00055068,120]
[321244453,1712014239638,-500.0,0.00055068,7]
[321244454,1712014239647,-500.0,0.00055068,120]
[321244455,1712014239657,-500.0,0.00055068,120]
[321244456,1712014239667,-500.0,0.00055068,120]
[321244457,1712014239676,-500.0,0.00055068,120]
[321244458,1712014239686,-500.0,0.00055068,120]
[321244459,1712014239695,-559.72,0.00055068,120]
[321244460,1712014239704,-500.0,0.00055068,120]
[321244461,1712014239713,-1108.52,0.00055068,120]
[321244462,1712014239722,-500.0,0.00055068,120]
[321244463,1712014239732,-1333.59,0.00055068,120]
[321244464,1712014239741,-218.19,0.00055068,120]
[321244465,1712014239750,-500.0,0.00055068,120]
[321244466,1712014239761,-500.0,0.00055068,120]
[321244467,1712014239771,-500.0,0.00055068,120]
[321244468,1712014239780,-500.0,0.00055068,120]
[321244469,1712014239789,-500.0,0.00055068,120]
[321244470,1712014239799,-163.72103719,0.00055068,120]
[321244471,1712014239809,-500.0,0.00055068,21]
[321244472,1712014239819,-1338.35,0.00055068,120]
[321244473,1712014239829,-500.0,0.00055068,120]
[321244474,1712014239839,-621.83,0.00055068,120]
[321244475,1712014239848,-363.21015236,0.00055068,120]
[321244476,1712014239858,-174.12,0.00055068,120]
[321244477,1712014239867,-500.0,0.00055068,120]
[321244478,1712014239877,-500.0,0.00055068,120]
[321244479,1712014239886,-500.0,0.00055068,120]
[321244480,1712014239900,-1653.71,0.00055068,120]
[321244481,1712014239913,-500.0,0.00055068,120]
[321244482,1712014239923,-500.0,0.00055068,120]
[321244483,1712014239934,-500.0,0.00055068,120]
[321244484,1712014239945,-500.0,0.00055068,120]
[321244485,1712014239955,-610.54,0.00055068,120]
[321244487,1712014239965,-2247.66,0.00055197,2]
[321244489,1712014239975,-4092.24965673,0.00055304,2]
[321244491,1712014239985,-500.0,0.00055342,7]
[321244493,1712014239994,-500.0,0.00055342,3]
[321244495,1712014240005,-500.0,0.00055342,120]
[321244497,1712014240015,-500.0,0.00055342,120]
[321244499,1712014240026,-500.0,0.00055342,120]
[321244501,1712014240035,-500.0,0.00055342,120]
[321244503,1712014240046,-707.82,0.00055342,120]
[321244506,1712014240056,-504.06,0.00055342,120]
[321244509,1712014240066,-500.0,0.00055342,7]
[321244511,1712014240076,-500.0,0.00055342,120]
[321244513,1712014240087,-500.0,0.00055342,120]
[321244515,1712014240098,-500.0,0.00055342,120]
[321244517,1712014240108,-500.0,0.00055342,120]
[321244518,1712014240118,-500.0,0.00055342,120]
[321244519,1712014240131,-210.69,0.00055342,120]
[321244520,1712014240141,-1108.52,0.00055342,120]
[321244521,1712014240152,-500.0,0.00055342,120]
[321244522,1712014240166,-1333.59,0.00055342,120]
[321244523,1712014240175,-500.0,0.00055342,120]
[321244524,1712014240184,-500.0,0.00055342,120]
[321244525,1712014240193,-500.0,0.00055342,120]
[321244526,1712014240203,-392.75,0.00055342,120]
[321244527,1712014240214,-467.97,0.00055342,120]
[321244528,1712014240225,-500.0,0.00055342,21]
[321244529,1712014240234,-1338.35,0.00055342,120]
[321244530,1712014240244,-500.0,0.00055342,120]
[321244531,1712014240254,-500.0,0.00055342,120]
[321244532,1712014240264,-500.0,0.00055342,120]
[321244533,1712014240273,-1653.71,0.00055342,120]
[321244534,1712014240283,-500.0,0.00055342,120]
[321244535,1712014240292,-328.92,0.00055342,120]
[321244536,1712014240302,-500.0,0.00055342,120]
[321244537,1712014240311,-500.0,0.00055342,120]
[321244538,1712014240321,-500.0,0.00055616,7]
[321244539,1712014240331,-500.0,0.00055616,3]
[321244540,1712014240340,-500.0,0.00055616,120]
[321244541,1712014240350,-500.0,0.00055616,120]
[321244542,1712014240359,-500.0,0.00055616,120]
[321244543,1712014240368,-500.0,0.00055616,120]
[321244544,1712014240377,-707.82,0.00055616,120]
[321244545,1712014240386,-504.06,0.00055616,120]
[321244546,1712014240396,-500.0,0.00055616,7]
[321244547,1712014240405,-500.0,0.00055616,120]
[321244548,1712014240415,-500.0,0.00055616,120]
[321244549,1712014240424,-500.0,0.00055616,120]
[321244550,1712014240433,-500.0,0.00055616,120]
[321244551,1712014240442,-500.0,0.00055616,120]
[321244552,1712014240452,-1108.52,0.00055616,120]
[321244553,1712014240461,-500.0,0.00055616,120]
[321244554,1712014240470,-1333.59,0.00055616,120]
[321244555,1712014240480,-500.0,0.00055616,120]
[321244556,1712014240489,-500.0,0.00055616,120]
[321244557,1712014240498,-500.0,0.00055616,120]
[321244558,1712014240508,-500.0,0.00055616,21]
[321244559,1712014240518,-1338.35,0.00055616,120]
[321244560,1712014240527,-500.0,0.00055616,120]
[321244561,1712014240536,-500.0,0.00055616,120]
[321244562,1712014240545,-500.0,0.00055616,120]
[321244563,1712014240555,-1653.71,0.00055616,120]
[321244564,1712014240564,-500.0,0.00055616,120]
[321244565,1712014240573,-500.0,0.00055616,120]
[321244566,1712014240582,-500.0,0.00055616,120]
[321244567,1712014240591,-165.44124158,0.00055623,14]
[321244568,1712014240600,-157.040208,0.00055867,109]
[321244569,1712014240610,-157.040208,0.00055877,110]
[321244570,1712014240619,-157.040208,0.00055887,111]
[321244571,1712014240629,-157.040208,0.00055889,112]
[321244572,1712014240638,-500.0,0.0005589,7]
[321244573,1712014240648,-500.0,0.0005589,120]
[321244574,1712014240658,-500.0,0.0005589,120]
[321244575,1712014240667,-500.0,0.0005589,120]
[321244576,1712014240676,-500.0,0.0005589,120]
[321244577,1712014240685,-707.82,0.0005589,120]
[321244578,1712014240694,-504.06,0.0005589,120]
[321244579,1712014240704,-500.0,0.0005589,7]
[321244580,1712014240776,-500.0,0.0005589,120]
[321244581,1712014240786,-500.0,0.0005589,120]
[321244582,1712014240796,-500.0,0.0005589,120]
[321244583,1712014240805,-500.0,0.0005589,120]
[321244584,1712014240815,-500.0,0.0005589,120]
[321244585,1712014240824,-1108.52,0.0005589,120]
[321244586,1712014240835,-500.0,0.0005589,120]
[321244587,1712014240844,-1333.59,0.0005589,120]
[321244588,1712014240854,-500.0,0.0005589,120]
[321244589,1712014240863,-500.0,0.0005589,120]
[321244590,1712014240873,-500.0,0.0005589,120]
[321244591,1712014240883,-500.0,0.0005589,21]
[321244592,1712014240892,-1338.35,0.0005589,120]
[321244593,1712014240902,-500.0,0.0005589,120]
[321244594,1712014240912,-500.0,0.0005589,120]
[321244595,1712014240923,-500.0,0.0005589,120]
[321244596,1712014240932,-1653.71,0.0005589,120]
[321244597,1712014240942,-500.0,0.0005589,120]
[321244598,1712014240952,-500.0,0.0005589,120]
[321244599,1712014240962,-500.0,0.0005589,120]
[321244600,1712014240971,-157.040208,0.00055891,113]
[321244601,1712014240982,-4092.24965673,0.00056114,2]
[321244602,1712014240993,-152.0,0.00056154,120]
[321244603,1712014241003,-8138.92420825,0.00056164,4]
[321244604,1712014241013,-493.25,0.00056164,7]
[321244605,1712014241023,-500.0,0.00056164,120]
[321244606,1712014241032,-500.0,0.00056164,120]
[321244607,1712014241042,-500.0,0.00056164,120]
[321244608,1712014241051,-500.0,0.00056164,120]
[321244609,1712014241062,-707.82,0.00056164,120]
[321244610,1712014241071,-504.06,0.00056164,120]
[321244611,1712014241080,-500.0,0.00056164,7]
[321244612,1712014241090,-500.0,0.00056164,120]
[321244613,1712014241101,-500.0,0.00056164,120]
[321244614,1712014241110,-500.0,0.00056164,120]
[321244615,1712014241121,-500.0,0.00056164,120]
[321244616,1712014241134,-500.0,0.00056164,120]
[321244617,1712014241144,-1108.52,0.00056164,120]
[321244618,1712014241154,-500.0,0.00056164,120]
[321244619,1712014241163,-1333.59,0.00056164,120]
[321244620,1712014241174,-500.0,0.00056164,120]
[321244621,1712014241184,-500.0,0.00056164,120]
[321244622,1712014241194,-500.0,0.00056164,120]
[321244623,1712014241206,-500.0,0.00056164,21]
[321244624,1712014241217,-1338.35,0.00056164,120]
[321244625,1712014241228,-500.0,0.00056164,120]
[321244626,1712014241238,-500.0,0.00056164,120]
[321244627,1712014241248,-500.0,0.00056164,120]
[321244628,1712014241258,-1653.71,0.00056164,120]
[321244629,1712014241268,-500.0,0.00056164,120]
[321244630,1712014241277,-500.0,0.00056164,120]
[321244631,1712014241287,-500.0,0.00056164,120]
[321244632,1712014241298,-530.0,0.00056302,120]
[321244633,1712014241309,-500.0,0.00056438,120]
[321244634,1712014241319,-500.0,0.00056438,120]
[321244635,1712014241329,-500.0,0.00056438,120]
[321244636,1712014241339,-500.0,0.00056438,120]
[321244637,1712014241350,-707.82,0.00056438,120]
[321244638,1712014241361,-504.06,0.00056438,120]
[321244639,1712014241371,-500.0,0.00056438,7]
[321244640,1712014241380,-500.0,0.00056438,120]
[321244641,1712014241390,-500.0,0.00056438,120]
[321244642,1712014241400,-500.0,0.00056438,120]
[321244643,1712014241410,-500.0,0.00056438,120]
[321244644,1712014241420,-500.0,0.00056438,120]
[321244645,1712014241430,-1108.52,0.00056438,120]
[321244646,1712014241440,-500.0,0.00056438,120]
[321244647,1712014241450,-1333.59,0.00056438,120]
[321244648,1712014241460,-500.0,0.00056438,120]
[321244649,1712014241469,-500.0,0.00056438,120]
[321244650,1712014241480,-500.0,0.00056438,120]
[321244651,1712014241489,-500.0,0.00056438,21]